fUSD/lending_fUSD_20251215
["ID","MTS","AMOUNT","RATE_DAILY","PERIOD"]
[398551316,1765825845465,-613.97383376,0.000189,2]
[398551317,1765825845475,-613.97383376,0.000189,2]
[398551318,1765825845483,-613.97383376,0.000189,2]
[398551319,1765825845493,-613.97,0.000189,2]
[398551320,1765825845502,-3053.04962308,0.000189,2]
[398551321,1765825845511,-150.0,0.00018904,2]
[398551322,1765825845520,-500.0,0.00018904,2]
[398551323,1765825845530,-266.35980985,0.00018904,2]
[398551324,1765825845540,-500.0,0.00018904,2]
[398551325,1765825845549,-268.95227974,0.00018904,2]
[398551326,1765825845558,-500.0,0.00018904,2]
[398551327,1765825845568,-500.0,0.00018904,2]
[398551328,1765825845578,-200.0,0.00018904,2]
[398551329,1765825845587,-500.0,0.00018904,2]
[398551330,1765825845596,-500.0,0.00018904,2]
[398551331,1765825845606,-387.90738229,0.00018904,2]
[398551332,1765825845615,-184.80848138,0.00018904,2]
[398551333,1765825845624,-500.0,0.00018904,2]
[398551334,1765825845634,-510.0,0.00018904,2]
[398551335,1765825845644,-500.0,0.00018904,2]
[398551336,1765825845654,-507.59794567,0.00018904,2]
[398551337,1765825845664,-163.1975105,0.00018904,2]
[398551338,1765825845674,-150.0,0.00018904,2]
[398551339,1765825845683,-475.0,0.00018904,2]
[398551340,1765825845693,-2102.0,0.00018904,2]
[398551341,1765825845706,-200.0,0.00018904,2]
[398551342,1765825845719,-1234.83,0.00018904,2]
[398551343,1765825845738,-553.28,0.00018904,2]
[398551344,1765825845758,-154.65535806,0.00018935,2]
[398551345,1765825845777,-500.0,0.00018973,2]
[398551346,1765825845787,-500.0,0.00018973,2]
[398551347,1765825845797,-500.0,0.00018973,2]
[398551348,1765825845806,-219.13164982,0.00018973,2]
[398551349,1765825845816,-500.2027477,0.00018973,2]
[398551350,1765825845826,-500.0,0.00018973,2]
[398551351,1765825845835,-500.0,0.00018973,2]
[398551352,1765825845845,-500.0,0.00018973,2]
[398551354,1765825845854,-500.0,0.00018973,2]
[398551355,1765825845863,-500.0,0.00018973,2]
[398551356,1765825845873,-500.0,0.00018973,2]
[398551357,1765825845882,-500.0,0.00018973,2]
[398551358,1765825845892,-500.0,0.00018973,2]
[398551359,1765825845901,-500.0,0.00018973,2]
[398551360,1765825845910,-500.0,0.00018973,2]
[398551361,1765825845920,-500.0,0.00018973,2]
[398551362,1765825845929,-500.0,0.00018973,2]
[398551363,1765825845938,-500.0,0.00018973,2]
[398551365,1765825845949,-500.0,0.00018973,2]
[398551367,1765825845958,-500.0,0.00018973,2]
[398551368,1765825845967,-500.0,0.00018973,2]
[398551369,1765825845976,-500.0,0.00018973,2]
[398551370,1765825845985,-500.0,0.00018973,2]
[398551371,1765825845995,-500.0,0.00018973,2]
[398551372,1765825846005,-500.0,0.00018973,2]
[398551373,1765825846014,-500.0,0.00018973,2]
[398551374,1765825846023,-176.75702751,0.00018973,2]
[398551375,1765825846032,-500.0,0.00018973,2]
[398551376,1765825846041,-500.0,0.00018973,2]
[398551377,1765825846050,-500.0,0.00018973,2]
[398551378,1765825846059,-500.0,0.00018973,2]
[398551379,1765825846068,-500.0,0.00018973,2]
[398551380,1765825846078,-500.0,0.00018973,2]
[398551381,1765825846087,-500.0,0.00018973,2]
[398551382,1765825846097,-500.0,0.00018973,2]
[398551383,1765825846106,-500.0,0.00018973,2]
[398551384,1765825846115,-500.0,0.00018973,2]
[398551385,1765825846123,-500.0,0.00018973,2]
[398551386,1765825846134,-500.0,0.00018973,2]
[398551387,1765825846143,-500.0,0.00018973,2]
[398551388,1765825846152,-500.0,0.00018973,2]
[398551389,1765825846161,-500.0,0.00018973,2]
[398551390,1765825846170,-500.0,0.00018973,2]
[398551391,1765825846179,-500.0,0.00018973,2]
[398551392,1765825846188,-500.0,0.00018973,2]
[398551393,1765825846197,-199.14559614,0.00018973,2]
[398551394,1765825846205,-150.0,0.00018986,2]
[398551395,1765825846215,-150.0,0.00018986,2]
[398551396,1765825846225,-150.0,0.00018986,2]
[398551397,1765825846234,-164.22,0.0001899,2]
[398551398,1765825846243,-151.0,0.00018997,2]
[398551399,1765825846252,-151.0,0.00018997,2]
[398551400,1765825846261,-7329.51,0.00018999,2]
[398551401,1765825846270,-3990999.12414748,0.00019,2]
[398551402,1765825846286,-801.50537532,0.00019,2]
[398551403,1765825846531,-433.0,0.00016705,2]
[398551404,1765825846541,-198.0,0.00016739,2]
[398551405,1765825846550,-6522.0,0.00017433,2]
[398551406,1765825846559,-164.26,0.0001899,2]
[398551407,1765825846569,-7817.83587023,0.00019,2]
[398551408,1765825846580,-904.67596112,0.00019,2]
[398551409,1765825846598,-21531.63479567,0.00019,2]
[398551410,1765825846613,-604250.8194246,0.00019,2]
[398551411,1765825846623,-7272.30772007,0.00019,2]
[398551412,1765825846801,-1794.38978663,0.00018868,2]
[398551413,1765825846812,-2164.14465,0.00018868,2]
[398551414,1765825846823,-862.57411,0.00018868,2]
[398551415,1765825846835,-364.71193818,0.00018868,2]
[398551416,1765825846846,-4501.12270633,0.00018868,2]
[398551417,1765825846855,-340.92,0.00018904,2]
[398551418,1765825846864,-1960.11763925,0.00019,2]
[398551419,1765825846875,-332031.74651871,0.00019,2]
[398551420,1765825846887,-540.52,0.00019,2]
[398551421,1765825846898,-296348.9310438,0.00019,2]
[398551422,1765825846908,-521.50544742,0.00019,2]
[398551423,1765825846924,-1587.635991,0.00019,2]
[398551424,1765825846935,-4363.76389369,0.00019,2]
[398551437,1765825946905,915.14,0.00013699,2]
[398551463,1765826378688,170.21,8.332e-05,2]
[398551464,1765826378894,170.21,9.999e-05,2]
[398551465,1765826379117,170.21,0.00011665,2]
[398551466,1765826379396,170.21,0.00013331,2]
[398551467,1765826379633,170.21,0.00014998,2]
[398551485,1765826497633,-365.19104842,0.00015716,2]
[398551486,1765826500328,-191.88503012,0.00015716,2]
[398551487,1765826501814,-478.62704075,0.00015716,2]
[398551488,1765826503429,-153.60720428,0.00015716,2]
[398551489,1765826510019,-207.2151951,0.00015716,2]
[398551495,1765826543838,-168.0,0.00015716,2]
[398551496,1765826545396,-419.71676248,0.00015716,2]
[398551584,1765826832515,500.0,0.00015715,2]
[398551605,1765826865420,500.0,0.00015715,2]
[398551614,1765826992870,-42.22171885,0.00015716,2]
[398551615,1765826992895,-179.385,0.00015716,2]
[398551616,1765826992920,-10.89775306,0.00015725,2]
[398551639,1765827031702,-189.10224694,0.00015725,2]
[398551640,1765827031713,-439.51155306,0.000159,2]
[398551641,1765827031759,-402.88001739,0.000159,2]
[398551642,1765827031768,-300.0,0.00015936,2]
[398551643,1765827031778,-1200.0,0.00015936,2]
[398551644,1765827031791,-300.0,0.00015936,2]
[398551645,1765827031801,-84.02334312,0.00015937,2]
[398551646,1765827031829,-422.94515405,0.00015937,2]
[398551647,1765827031841,-2127.37987507,0.00015937,2]
[398551685,1765827039999,-499.20944942,0.00015936,2]
[398551686,1765827040010,-500.0,0.00015936,2]
[398551687,1765827040020,-500.0,0.00015936,2]
[398551688,1765827040029,-500.0,0.00015936,2]
[398551689,1765827040039,-333.995,0.00015936,2]
[398551690,1765827040048,-500.0,0.00015936,2]
[398551691,1765827040058,-500.0,0.00015936,2]
[398551692,1765827040067,-500.0,0.00015936,2]
[398551693,1765827040077,-500.0,0.00015936,2]
[398551694,1765827040086,-500.0,0.00015936,2]
[398551695,1765827040095,-157264.78075801,0.00015937,2]
[398551697,1765827040108,-181862.27711065,0.00015937,2]
[398551698,1765827040123,-702.44457771,0.00015937,2]
[398551699,1765827040164,-3379.8,0.00015937,2]
[398551701,1765827040601,-1.7e-07,0.00015937,2]
[398551702,1765827040613,-4568.56152259,0.00015937,2]
[398551703,1765827040624,-16625.71652897,0.00015937,2]
[398551704,1765827040636,-386.49005528,0.00015937,2]
[398551705,1765827040646,-2732.7300008,0.00015937,2]
[398551706,1765827040657,-57321.63059446,0.00015937,2]
[398551707,1765827040668,-3461.57668137,0.00015937,2]
[398551708,1765827040686,-419.89121974,0.00015937,2]
[398551709,1765827040697,-185460.12557801,0.00015937,2]
[398551710,1765827040706,-18877.98079954,0.00015937,2]
[398551711,1765827040715,-152.80684117,0.00015937,2]
[398551712,1765827040724,-9005.82355167,0.00015937,2]
[398551713,1765827040733,-138362.91796455,0.00016,4]
[398551714,1765827040742,-614.7274,0.00016037,2]
[398551715,1765827040752,-1000.0,0.00016037,2]
[398551716,1765827040762,-9005.82355158,0.00016053,2]
[398551717,1765827040771,-18877.98079954,0.00016065,2]
[398551718,1765827040781,-9005.82355158,0.0001617,2]
[398551719,1765827040791,-500.38142603,0.00016173,2]
[398551720,1765827040800,-500.0,0.00016173,2]
[398551721,1765827040810,-534.13325228,0.00016173,2]
[398551722,1765827040820,-500.0,0.00016173,2]
[398551723,1765827040830,-500.0,0.00016173,2]
[398551724,1765827040840,-500.0,0.00016173,2]
[398551725,1765827040850,-500.0,0.00016173,2]
[398551726,1765827040859,-500.0,0.00016173,2]
[398551727,1765827040869,-500.0,0.00016173,2]
[398551728,1765827040878,-500.0,0.00016173,2]
[398551729,1765827040888,-500.0,0.00016173,2]
[398551731,1765827040897,-500.0,0.00016173,2]
[398551732,1765827040906,-500.0,0.00016173,2]
[398551733,1765827040916,-500.0,0.00016173,2]
[398551734,1765827040925,-500.0,0.00016173,2]
[398551735,1765827040934,-500.0,0.00016173,2]
[398551736,1765827040943,-500.0,0.00016173,2]
[398551737,1765827040952,-500.0,0.00016173,2]
[398551738,1765827040963,-315.21795353,0.00016173,2]
[398551739,1765827040972,-250.59182654,0.00016173,2]
[398551740,1765827040980,-500.0,0.00016173,2]
[398551741,1765827040989,-500.0,0.00016173,2]
[398551742,1765827040998,-626.45389736,0.00016173,2]
[398551743,1765827041008,-500.0,0.00016173,2]
[398551744,1765827041016,-500.0,0.00016173,2]
[398551745,1765827041026,-500.0,0.00016173,2]
[398551746,1765827041035,-500.0,0.00016173,2]
[398551747,1765827041045,-500.0,0.00016173,2]
[398551748,1765827041054,-500.0,0.00016173,2]
[398551749,1765827041065,-305.07,0.00016173,2]
[398551750,1765827041074,-18877.98079954,0.00016192,2]
[398551751,1765827041084,-16911.08333505,0.000162,5]
[398551752,1765827041095,-9005.82355158,0.00016286,2]
[398551753,1765827041105,-18877.98079954,0.0001632,2]
[398551754,1765827041117,-9005.82355158,0.00016403,2]
[398551755,1765827041131,-1600.0,0.00016408,2]
[398551756,1765827041143,-500.0,0.00016438,2]
[398551757,1765827041153,-500.0,0.00016438,2]
[398551758,1765827041165,-500.0,0.00016438,2]
[398551759,1765827041174,-305.07,0.00016447,2]
[398551760,1765827041183,-18877.98079954,0.00016447,2]
[398551761,1765827041193,-9005.82355158,0.00016519,2]
[398551762,1765827041207,-18877.98079954,0.00016575,2]
[398551763,1765827041217,-9005.82355158,0.00016636,2]
[398551764,1765827041226,-200.0,0.0001666,2]
[398551765,1765827041235,-170.21,0.00016664,2]
[398551766,1765827041244,-18877.98079954,0.00016702,2]
[398551767,1765827041254,-500.0,0.00016721,2]
[398551768,1765827041264,-1000.0,0.00016721,2]
[398551769,1765827041273,-1000.0,0.00016721,2]
[398551770,1765827041282,-1000.0,0.00016721,2]
[398551771,1765827041293,-1000.0,0.00016721,2]
[398551772,1765827041303,-305.08,0.00016721,2]
[398551773,1765827041312,-9005.82355158,0.00016752,2]
[398551774,1765827041322,-18877.98079954,0.0001683,2]
[398551775,1765827041331,-9005.82355158,0.00016869,2]
[398551776,1765827041340,-1511.18958841,0.000169,2]
[398551777,1765827041350,-1511.18958841,0.000169,2]
[398551778,1765827041359,-1511.18958841,0.000169,2]
[398551779,1765827041368,-1511.18958841,0.000169,2]
[398551780,1765827041376,-1511.18958841,0.000169,2]
[398551781,1765827041386,-1511.18958841,0.000169,2]
[398551782,1765827041395,-1511.18958841,0.000169,2]
[398551783,1765827041404,-1511.18958841,0.000169,2]
[398551784,1765827041413,-1511.18958841,0.000169,2]
[398551785,1765827041423,-1511.18958841,0.000169,2]
[398551786,1765827041432,-1511.18958841,0.000169,2]
[398551787,1765827041441,-1511.18958841,0.000169,2]
[398551788,1765827041451,-1511.18958841,0.000169,2]
[398551789,1765827041460,-1511.18958841,0.000169,2]
[398551790,1765827041470,-1511.18958841,0.000169,2]
[398551791,1765827041478,-1511.18958841,0.000169,2]
[398551792,1765827041487,-1511.18958841,0.000169,2]
[398551793,1765827041495,-1511.18958841,0.000169,2]
[398551794,1765827041504,-1511.18958841,0.000169,2]
[398551795,1765827041515,-1511.18,0.000169,2]
[398551796,1765827041525,-307.65082595,0.000169,2]
[398551797,1765827041533,-307.65082595,0.000169,2]
[398551798,1765827041544,-307.65082595,0.000169,2]
[398551799,1765827041552,-307.65082595,0.000169,2]
[398551800,1765827041561,-307.65082595,0.000169,2]
[398551801,1765827041570,-307.65082595,0.000169,2]
[398551802,1765827041579,-307.65082595,0.000169,2]
[398551803,1765827041587,-307.65082595,0.000169,2]
[398551804,1765827041596,-307.65082595,0.000169,2]
[398551805,1765827041605,-307.65082595,0.000169,2]
[398551806,1765827041613,-307.65082595,0.000169,2]
[398551807,1765827041622,-307.65082595,0.000169,2]
[398551808,1765827041631,-307.65082595,0.000169,2]
[398551809,1765827041639,-307.65082595,0.000169,2]
[398551810,1765827041648,-307.65082595,0.000169,2]
[398551811,1765827042147,-307.65082595,0.000169,2]
[398551812,1765827042166,-307.65082595,0.000169,2]
[398551813,1765827042175,-307.65082595,0.000169,2]
[398551814,1765827042184,-307.65082595,0.000169,2]
[398551815,1765827042193,-307.65,0.000169,2]
[398551816,1765827042203,-613.97383376,0.000169,2]
[398551817,1765827042212,-613.97383376,0.000169,2]
[398551818,1765827042221,-613.97383376,0.000169,2]
[398551819,1765827042230,-613.97383376,0.000169,2]
[398551820,1765827042239,-613.97383376,0.000169,2]
[398551821,1765827042248,-613.97383376,0.000169,2]
[398551822,1765827042258,-613.97383376,0.000169,2]
[398551823,1765827042267,-613.97383376,0.000169,2]
[398551824,1765827042276,-613.97383376,0.000169,2]
[398551825,1765827042286,-613.97383376,0.000169,2]
[398551826,1765827042299,-613.97383376,0.000169,2]
[398551827,1765827042310,-613.97383376,0.000169,2]
[398551828,1765827042320,-613.97383376,0.000169,2]
[398551829,1765827042329,-613.97383376,0.000169,2]
[398551830,1765827042339,-613.97383376,0.000169,2]
[398551831,1765827042349,-613.97383376,0.000169,2]
[398551832,1765827042358,-613.97383376,0.000169,2]
[398551833,1765827042368,-613.97383376,0.000169,2]
[398551834,1765827042377,-613.97383376,0.000169,2]
[398551835,1765827042388,-613.97,0.000169,2]
[398551836,1765827042398,-18877.98079954,0.00016957,2]
[398551837,1765827042407,-9005.82355158,0.00016985,2]
[398551838,1765827042416,-518.06,0.00016986,2]
[398551839,1765827042425,-188.04574097,0.0001699,2]
[398551840,1765827042435,-151.0,0.0001699,2]
[398551841,1765827042444,-151.0,0.0001699,2]
[398551842,1765827042454,-151.0,0.0001699,2]
[398551843,1765827042463,-151.0,0.0001699,2]
[398551844,1765827042473,-151.0,0.0001699,2]
[398551845,1765827042482,-151.0,0.0001699,2]
[398551846,1765827042491,-151.0,0.0001699,2]
[398551847,1765827042500,-151.0,0.0001699,2]
[398551848,1765827042510,-151.0,0.0001699,2]
[398551849,1765827042519,-151.0,0.0001699,2]
[398551850,1765827042528,-151.0,0.0001699,2]
[398551852,1765827042539,-151.0,0.0001699,2]
[398551853,1765827042548,-151.0,0.00016997,2]
[398551854,1765827042557,-151.0,0.00016997,2]
[398551855,1765827042566,-500.0,0.00016999,2]
[398551856,1765827042575,-500.0,0.00016999,2]
[398551857,1765827042584,-500.0,0.00016999,2]
[398551858,1765827042594,-500.0,0.00016999,2]
[398551859,1765827042603,-500.0,0.00016999,2]
[398551860,1765827042613,-500.0,0.00016999,2]
[398551861,1765827042622,-380.2119704,0.00016999,2]
[398551862,1765827042632,-250.0,0.00017,2]
[398551863,1765827042641,-3512641.95315276,0.00017,2]
[398551864,1765827042671,-3452.41834376,0.00017,2]
[398551878,1765827043195,-514.76011261,0.00017,2]
[398551881,1765827043248,-301.1,0.00017,2]
[398551882,1765827043260,-358.46845774,0.00017,2]
[398551883,1765827043271,-1033.71977405,0.00017,2]
[398551886,1765827043304,-345375.25891288,0.00017,2]
[398551887,1765827043315,-41387.2782998,0.00017,2]
[398551888,1765827043327,-1001.9863755,0.00017,2]
[398551894,1765827045695,-753152.97207103,0.00017,2]
[398551895,1765827045706,-2486.13672743,0.00017,2]
[398551896,1765827045752,-427254.13643252,0.00017,2]
[398551897,1765827045763,-3275.848593,0.00017,2]
[398551898,1765827045861,-3084.1939779,0.00017,2]
[398551899,1765827045872,-732.0,0.00017,2]
[398551900,1765827045884,-1751.11767241,0.00017,2]
[398551901,1765827045894,-3895.19570525,0.00017,2]
[398551902,1765827045905,-373.96952708,0.00017,2]
[398551903,1765827045916,-51606.55196226,0.00017,2]
[398551904,1765827045927,-8911.79410613,0.00017,2]
[398551905,1765827045938,-4260.36689379,0.00017,2]
[398551906,1765827045949,-743962.0315858,0.00017,2]
[398551981,1765827618288,1000.0,0.00015614,2]
[398552935,1765827657368,-500.0,0.00042161,120]
[398552937,1765827657397,-500.0,0.00042161,120]
[398552939,1765827657425,-302.2555612,0.00042161,120]
[398552941,1765827657454,-500.0,0.00042161,120]
[398552942,1765827657485,-500.0,0.00042161,120]
[398552944,1765827657516,-500.0,0.00042161,120]
[398552946,1765827657546,-404.40232645,0.00042161,120]
[398552948,1765827657576,-500.0,0.00042161,120]
[398552950,1765827657605,-500.0,0.00042161,30]
[398552952,1765827657636,-500.0,0.00042161,120]
[398552954,1765827657664,-500.0,0.00042161,30]
[398552956,1765827657695,-500.0,0.00042161,120]
[398552958,1765827657728,-500.0,0.00042161,120]
[398552960,1765827657761,-500.0,0.00042161,120]
[398552962,1765827657790,-500.0,0.00042161,30]
[398552964,1765827657822,-500.0,0.00042161,120]
[398552966,1765827657852,-500.0,0.00042161,120]
[398552968,1765827657881,-500.0,0.00042161,120]
[398552971,1765827657911,-500.0,0.00042161,30]
[398552972,1765827657942,-500.0,0.00042161,120]
[398552974,1765827657972,-500.0,0.00042161,120]
[398552976,1765827658004,-500.0,0.00042161,120]
[398552978,1765827658033,-500.0,0.00042161,120]
[398552980,1765827658066,-500.0,0.00042161,30]
[398552982,1765827658096,-500.0,0.00042161,120]
[398552984,1765827658126,-500.0,0.00042161,120]
[398552986,1765827658156,-500.0,0.00042161,120]
[398552988,1765827658189,-500.0,0.00042161,120]
[398552990,1765827658222,-500.0,0.00042161,30]
[398552992,1765827658260,-500.0,0.00042161,120]
[398552994,1765827658293,-500.0,0.00042161,120]
[398552996,1765827658329,-705.56,0.00042161,120]
[398552998,1765827658362,-500.0,0.00042161,120]
[398553000,1765827658395,-500.0,0.00042161,120]
[398553002,1765827658429,-500.0,0.00042161,30]
[398553004,1765827658463,-500.0,0.00042161,120]
[398553006,1765827658496,-500.0,0.00042161,120]
[398553007,1765827658527,-705.56,0.00042161,120]
[398553009,1765827658561,-500.0,0.00042161,120]
[398553011,1765827658591,-500.0,0.00042161,120]
[398553013,1765827658621,-500.0,0.00042161,30]
[398553015,1765827658652,-504.92892246,0.00042161,120]
[398553017,1765827658683,-705.56,0.00042161,120]
[398553019,1765827658713,-500.0,0.00042161,120]
[398553021,1765827658747,-500.0,0.00042161,120]
[398553023,1765827658777,-500.0,0.00042161,120]
[398553025,1765827658812,-500.0,0.00042161,30]
[398553027,1765827658842,-500.0,0.00042161,120]
[398553028,1765827658874,-705.56,0.00042161,120]
[398553030,1765827658905,-500.0,0.00042161,120]
[398553032,1765827658942,-500.0,0.00042161,120]
[398553034,1765827658979,-500.0,0.00042161,30]
[398553036,1765827659013,-705.56,0.00042161,120]
[398553038,1765827659048,-500.0,0.00042161,120]
[398553040,1765827659079,-500.0,0.00042161,120]
[398553042,1765827659111,-500.0,0.00042161,30]
[398553044,1765827659141,-500.0,0.00042161,120]
[398553045,1765827659172,-705.56,0.00042161,120]
[398553047,1765827659203,-500.0,0.00042161,120]
[398553049,1765827659235,-500.0,0.00042161,120]
[398553051,1765827659267,-503.87600425,0.00042161,30]
[398553053,1765827659300,-500.0,0.00042161,120]
[398553055,1765827659338,-705.56,0.00042161,120]
[398553057,1765827659371,-500.0,0.00042161,120]
[398553059,1765827659402,-500.0,0.00042161,120]
[398553061,1765827659435,-500.0,0.00042161,120]
[398553063,1765827659464,-705.56,0.00042161,120]
[398553065,1765827659494,-500.0,0.00042161,120]
[398553067,1765827659524,-500.0,0.00042161,120]
[398553069,1765827659552,-422.24147298,0.00042161,120]
[398553070,1765827659578,-500.0,0.00042161,120]
[398553072,1765827659605,-500.0,0.00042161,120]
[398553074,1765827659633,-705.56,0.00042161,120]
[398553076,1765827659661,-500.0,0.00042161,120]
[398553078,1765827659691,-500.0,0.00042161,120]
[398553080,1765827659719,-500.0,0.00042161,120]
[398553082,1765827659746,-705.56,0.00042161,120]
[398553084,1765827659774,-500.0,0.00042161,120]
[398553086,1765827659802,-500.0,0.00042161,120]
[398553088,1765827659832,-705.56,0.00042161,120]
[398553090,1765827659860,-500.0,0.00042161,120]
[398553092,1765827659888,-500.0,0.00042161,120]
[398553095,1765827659918,-500.0,0.00042161,120]
[398553097,1765827659948,-521.66053279,0.00042161,120]
[398553099,1765827659976,-705.56,0.00042161,120]
[398553101,1765827660002,-500.0,0.00042161,120]
[398553102,1765827660029,-500.0,0.00042161,120]
[398553104,1765827660058,-705.56,0.00042161,120]
[398553106,1765827660086,-500.0,0.00042161,120]
[398553108,1765827660113,-500.0,0.00042161,120]
[398553110,1765827660141,-500.0,0.00042161,120]
[398553112,1765827660168,-705.56,0.00042161,120]
[398553114,1765827660195,-500.0,0.00042161,120]
[398553116,1765827660221,-500.0,0.00042161,120]
[398553133,1765827660806,-502.52502416,0.00042161,120]
[398553135,1765827660836,-705.56,0.00042161,120]
[398553137,1765827660863,-335.47612995,0.00042161,120]
[398553139,1765827660889,-500.0,0.00042161,120]
[398553142,1765827660915,-705.56,0.00042161,120]
[398553144,1765827660941,-500.0,0.00042161,120]
[398553146,1765827660966,-705.56,0.00042161,120]
[398553148,1765827660991,-500.0,0.00042161,120]
[398553150,1765827661018,-705.56,0.00042161,120]
[398553152,1765827661049,-500.0,0.00042161,120]
[398553154,1765827661082,-705.56,0.00042161,120]
[398553156,1765827661113,-299.29757702,0.00042161,120]
[398553158,1765827661142,-705.56,0.00042161,120]
[398553160,1765827661171,-705.56,0.00042161,120]
[398553162,1765827661198,-500.0,0.00042161,120]
[398553164,1765827661227,-705.56,0.00042161,120]
[398553166,1765827661253,-500.0,0.00042161,120]
[398553168,1765827661280,-596.34,0.00042161,120]
[398553170,1765827661308,-705.56,0.00042161,120]
[398553172,1765827661338,-500.0,0.00042161,120]
[398553174,1765827661364,-500.0,0.00042161,120]
[398553176,1765827661390,-596.34,0.00042161,120]
[398553178,1765827661417,-705.74242522,0.00042161,120]
[398553180,1765827661444,-500.0,0.00042161,120]
[398553183,1765827661476,-500.0,0.00042161,120]
[398553185,1765827661504,-596.34,0.00042161,120]
[398553187,1765827661530,-500.0,0.00042161,120]
[398553189,1765827661557,-500.0,0.00042161,120]
[398553191,1765827661585,-596.34,0.00042161,120]
[398553193,1765827661615,-500.0,0.00042161,120]
[398553195,1765827661644,-500.0,0.00042161,120]
[398553197,1765827661672,-596.34,0.00042161,120]
[398553199,1765827661699,-500.0,0.00042161,120]
[398553201,1765827661726,-500.22213963,0.00042161,120]
[398553203,1765827661753,-500.0,0.00042161,120]
[398553205,1765827661781,-596.34,0.00042161,120]
[398553207,1765827661808,-500.0,0.00042161,120]
[398553209,1765827661835,-500.0,0.00042161,120]
[398553211,1765827661863,-508.21550142,0.00042161,120]
[398553214,1765827661891,-596.34,0.00042161,120]
[398553216,1765827661924,-500.0,0.00042161,120]
[398553218,1765827661952,-596.34,0.00042161,120]
[398553220,1765827661981,-503.53817633,0.00042161,120]
[398553222,1765827662010,-596.34,0.00042161,120]
[398553224,1765827662039,-600.61,0.00042161,120]
[398553226,1765827662068,-596.34,0.00042161,120]
[398553228,1765827662099,-4771.19,0.00042161,120]
[398553231,1765827662128,-600.61,0.00042161,120]
[398553233,1765827662159,-596.34,0.00042161,120]
[398553235,1765827662187,-500.0,0.00042161,120]
[398553237,1765827662216,-4771.19,0.00042161,120]
[398553239,1765827662248,-500.0,0.00042161,120]
[398553241,1765827662278,-600.61,0.00042161,120]
[398553243,1765827662308,-500.0,0.00042161,120]
[398553245,1765827662340,-500.0,0.00042161,120]
[398553247,1765827662371,-596.34,0.00042161,120]
[398553249,1765827662403,-4771.19,0.00042161,120]
[398553251,1765827662432,-500.0,0.00042161,120]
[398553253,1765827662461,-600.61,0.00042161,120]
[398553255,1765827662490,-500.0,0.00042161,120]
[398553258,1765827662519,-500.0,0.00042161,120]
[398553260,1765827662547,-596.34,0.00042161,120]
[398553262,1765827662574,-4771.19,0.00042161,120]
[398553264,1765827662602,-500.0,0.00042161,120]
[398553266,1765827662631,-600.61,0.00042161,120]
[398553268,1765827662659,-500.0,0.00042161,120]
[398553270,1765827662686,-596.34,0.00042161,120]
[398553272,1765827662715,-500.0,0.00042161,120]
[398553274,1765827662742,-4771.19,0.00042161,120]
[398553276,1765827662770,-500.0,0.00042161,120]
[398553278,1765827662801,-600.61,0.00042161,120]
[398553280,1765827662830,-500.0,0.00042161,120]
[398553282,1765827662859,-596.34,0.00042161,120]
[398553284,1765827662888,-4771.19,0.00042161,120]
[398553286,1765827662917,-500.0,0.00042161,120]
[398553288,1765827662943,-600.61,0.00042161,120]